fUSD/lending_fUSD_20260527
["ID","MTS","AMOUNT","RATE_DAILY","PERIOD"]
[423130424,1779873032000,-865.6208675,0.0003548,2]
[423130435,1779873032000,-484.76763572,0.0003548,2]
[423130436,1779873032000,-310.28230408,0.0003548,2]
[423130433,1779873032000,-452.52893397,0.0003548,2]
[423130432,1779873032000,-578.28315025,0.0003548,2]
[423130434,1779873032000,-300.0,0.0003548,2]
[423130430,1779873032000,-300.0,0.0003548,2]
[423130431,1779873032000,-464.48677942,0.0003548,2]
[423130428,1779873032000,-310.02493426,0.0003548,2]
[423130426,1779873032000,-300.09384644,0.0003548,2]
[423130427,1779873032000,-1148.83589152,0.0003548,2]
[423130429,1779873032000,-594.79850986,0.0003548,2]
[423130471,1779873033000,-500.0,0.00035665,2]
[423130478,1779873033000,-500.0,0.00035665,15]
[423130475,1779873033000,-500.0,0.00035665,2]
[423130474,1779873033000,-500.0,0.00035665,15]
[423130472,1779873033000,-500.0,0.00035665,15]
[423130476,1779873033000,-500.0,0.00035665,15]
[423130466,1779873033000,-500.0,0.00035665,2]
[423130473,1779873033000,-500.0,0.00035665,2]
[423130469,1779873033000,-500.0,0.00035665,15]
[423130468,1779873033000,-500.0,0.00035665,2]
[423130467,1779873033000,-500.0,0.00035665,15]
[423130477,1779873033000,-500.0,0.00035665,2]
[423130470,1779873033000,-500.0,0.00035665,2]
[423130482,1779873033000,-215.67927152,0.00035668,15]
[423130480,1779873033000,-462.28339772,0.00035668,15]
[423130479,1779873033000,-500.0,0.00035668,15]
[423130494,1779873033000,-4690.90298265,0.00035669,2]
[423130495,1779873033000,-24010.70011704,0.00035669,2]
[423130491,1779873033000,-165.44,0.00035668,30]
[423130492,1779873033000,-151.0,0.00035668,2]
[423130493,1779873033000,-8752.93596498,0.00035668,5]
[423130490,1779873033000,-500.0,0.00035668,30]
[423130489,1779873033000,-500.0,0.00035668,30]
[423130486,1779873033000,-379.67251616,0.00035668,15]
[423130487,1779873033000,-500.0,0.00035668,30]
[423130485,1779873033000,-250.80717547,0.00035668,15]
[423130483,1779873033000,-500.0,0.00035668,15]
[423130484,1779873033000,-500.0,0.00035668,15]
[423130481,1779873033000,-500.0,0.00035668,15]
[423130488,1779873033000,-500.0,0.00035668,30]
[423130498,1779873037000,-363.48787658,0.0003548,2]
[423130499,1779873037000,-531.16646725,0.0003548,2]
[423130502,1779873037000,-300.0,0.0003548,2]
[423130500,1779873037000,-727.07827244,0.0003548,2]
[423130501,1779873037000,-302.21937029,0.0003548,2]
[423130503,1779873037000,-1493.87660918,0.00035659,10]
[423130531,1779873038000,-500.0,0.00035665,2]
[423130522,1779873038000,-500.0,0.00035665,2]
[423130523,1779873038000,-500.0,0.00035665,15]
[423130520,1779873038000,-500.0,0.00035665,2]
[423130524,1779873038000,-500.0,0.00035665,2]
[423130528,1779873038000,-231.1090925,0.00035665,2]
[423130529,1779873038000,-500.0,0.00035665,15]
[423130526,1779873038000,-500.0,0.00035665,2]
[423130527,1779873038000,-500.0,0.00035665,15]
[423130532,1779873038000,-500.0,0.00035665,15]
[423130533,1779873038000,-500.0,0.00035665,15]
[423130534,1779873038000,-500.0,0.00035665,2]
[423130521,1779873038000,-500.0,0.00035665,15]
[423130519,1779873038000,-500.0,0.00035665,15]
[423130507,1779873038000,-500.0,0.00035665,2]
[423130512,1779873038000,-500.0,0.00035665,15]
[423130514,1779873038000,-500.0,0.00035665,2]
[423130513,1779873038000,-500.0,0.00035665,2]
[423130515,1779873038000,-500.0,0.00035665,15]
[423130516,1779873038000,-500.0,0.00035665,2]
[423130509,1779873038000,-500.0,0.00035665,2]
[423130518,1779873038000,-500.0,0.00035665,2]
[423130511,1779873038000,-500.0,0.00035665,2]
[423130536,1779873038000,-500.0,0.00035665,15]
[423130508,1779873038000,-500.0,0.00035665,15]
[423130510,1779873038000,-500.0,0.00035665,15]
[423130506,1779873038000,-500.0,0.00035665,15]
[423130505,1779873038000,-500.0,0.00035665,2]
[423130504,1779873038000,-2568.19339082,0.00035659,10]
[423130517,1779873038000,-500.0,0.00035665,15]
[423130537,1779873038000,-500.0,0.00035665,2]
[423130525,1779873038000,-500.0,0.00035665,15]
[423130539,1779873038000,-500.0,0.00035665,15]
[423130567,1779873038000,-2724.15210523,0.00035669,2]
[423130535,1779873038000,-500.0,0.00035665,2]
[423130566,1779873038000,-3807.68858896,0.00035669,2]
[423130565,1779873038000,-11707.62453301,0.00035669,2]
[423130563,1779873038000,-1518.01972291,0.00035669,2]
[423130562,1779873038000,-1143.01540716,0.00035669,2]
[423130564,1779873038000,-15606.0,0.00035669,2]
[423130560,1779873038000,-500.0,0.00035665,15]
[423130561,1779873038000,-13310.72481543,0.00035669,2]
[423130559,1779873038000,-500.0,0.00035665,15]
[423130558,1779873038000,-500.0,0.00035665,15]
[423130552,1779873038000,-500.0,0.00035665,15]
[423130556,1779873038000,-500.0,0.00035665,15]
[423130555,1779873038000,-500.0,0.00035665,15]
[423130557,1779873038000,-500.0,0.00035665,15]
[423130568,1779873038000,-1194.72789477,0.00035669,2]
[423130551,1779873038000,-500.0,0.00035665,15]
[423130553,1779873038000,-500.0,0.00035665,15]
[423130544,1779873038000,-500.0,0.00035665,15]
[423130541,1779873038000,-500.0,0.00035665,15]
[423130543,1779873038000,-500.0,0.00035665,15]
[423130540,1779873038000,-500.0,0.00035665,2]
[423130538,1779873038000,-500.0,0.00035665,15]
[423130542,1779873038000,-500.0,0.00035665,15]
[423130530,1779873038000,-500.0,0.00035665,15]
[423130545,1779873038000,-500.0,0.00035665,15]
[423130548,1779873038000,-500.0,0.00035665,15]
[423130547,1779873038000,-500.0,0.00035665,15]
[423130550,1779873038000,-488.31919245,0.00035665,15]
[423130549,1779873038000,-500.0,0.00035665,15]
[423130546,1779873038000,-500.0,0.00035665,15]
[423130554,1779873038000,-500.0,0.00035665,15]
[423130584,1779873043000,-165.20343422,0.000355,2]
[423130583,1779873043000,-1263.96825586,0.0003548,2]
[423130581,1779873043000,-100.99795142,0.0003548,2]
[423130582,1779873043000,-300.0,0.0003548,2]
[423130580,1779873043000,-199.00204858,0.0003548,2]
[423130579,1779873043000,-300.99795142,0.0003548,2]
[423130605,1779873046000,-527.62572404,0.0003548,2]
[423130606,1779873046000,-344.45437934,0.0003548,2]
[423130608,1779873046000,-7746.1,0.00035659,10]
[423130609,1779873046000,-4347.59575584,0.00035669,2]
[423130607,1779873046000,-174.89314078,0.000355,2]
[423130610,1779873046000,-3194.77968996,0.00035669,2]
[423130611,1779873046000,-2118.12636828,0.00035669,2]
[423130618,1779873077000,-150.0,0.00030202,2]
[423130620,1779873095000,166.37609198,0.000265,2]
[423130619,1779873095000,166.37609198,0.000262,2]
[423130622,1779873096000,166.37609198,0.00027,2]
[423130621,1779873096000,166.37609198,0.000267,2]
[423130623,1779873098000,191.21061057,0.000262,2]
[423130624,1779873098000,191.21061057,0.000265,2]
[423130626,1779873109000,278.77565213,0.000265,2]
[423130625,1779873109000,278.77565213,0.000262,2]
[423130628,1779873110000,278.77565213,0.00027,2]
[423130627,1779873110000,278.77565213,0.000267,2]
[423130629,1779873111000,278.77565213,0.000273,2]
[423130634,1779873139000,150.0,0.00031066,2]
[423130635,1779873153000,151.1977421,0.0002726,2]
[423130636,1779873163000,527.0,0.00028066,2]
[423130637,1779873176000,1730.00840819,0.00024174,2]
[423130639,1779873176000,2306.32159181,0.00024174,2]
[423130638,1779873176000,5000.01,0.00024174,2]
[423130641,1779873177000,5000.01,0.00025786,2]
[423130642,1779873177000,1342.64159181,0.00025786,2]
[423130640,1779873177000,2693.68840819,0.00025786,2]
[423130643,1779873181000,500.0,0.00030102,2]
[423130648,1779873478000,-193.61,0.00017233,2]
[423130654,1779873563000,-193.61,0.00020861,2]
[423130653,1779873563000,-193.61,0.00019954,2]
[423130652,1779873563000,-193.61,0.00019047,2]
[423130651,1779873563000,-193.61,0.0001814,2]
[423130655,1779873564000,-193.61,0.00021768,2]
[423130658,1779873564000,-193.61,0.00024489,2]
[423130657,1779873564000,-193.61,0.00023582,2]
[423130656,1779873564000,-193.61,0.00022675,2]
[423130667,1779873687000,-231.1090925,0.00024816,2]
[423130668,1779873698000,-18.8909075,0.00024816,2]
[423130670,1779873735000,266.07103257,0.0001421,7]
[423130674,1779873742000,7473.07341012,0.000107,2]
[423130673,1779873742000,233.92896743,0.000107,2]
[423130675,1779873749000,5711.364442,9.04e-05,2]
[423130677,1779873827000,200.0,0.00025082,2]
[423130680,1779873834000,500.0,0.00024174,2]
[423130679,1779873834000,300.0,0.00024174,2]
[423130686,1779873951000,-487.09128064,0.00024174,2]
[423130687,1779873966000,-66.55794085,0.00024174,2]
[423130688,1779874011000,-522.18598028,0.00024174,2]
[423130691,1779874028000,-3391.41681962,0.00024174,2]
[423130692,1779874057000,-154.55797861,0.00024174,2]
[423131718,1779874357000,-285.0,0.00025296,2]
[423131717,1779874357000,-528.0,0.00025082,2]
[423131719,1779874357000,-193.61,0.00025397,2]
[423131720,1779874357000,-1200.0,0.00025785,2]
[423131724,1779874357000,-54.44431713,0.00026,2]
[423131722,1779874357000,-1263.21257087,0.00026,2]
[423131723,1779874357000,-182.343112,0.00026,2]
[423131725,1779874357000,-4904.69965912,0.00026,10]
[423131721,1779874357000,-5421.81,0.00025786,2]
[423131734,1779874358000,-150.0,0.00029,2]
[423131726,1779874358000,-3994.41813903,0.00026,10]
[423131727,1779874358000,-913.67428573,0.00026,10]
[423131729,1779874358000,-193.61,0.00026304,2]
[423131728,1779874358000,-217.14,0.00026123,2]
[423131730,1779874358000,-193.61,0.00027211,2]
[423131732,1779874358000,-1680.0,0.00028036,2]
[423131731,1779874358000,-150.0,0.00027521,2]
[423131733,1779874358000,-193.61,0.00028118,2]
[423131736,1779874358000,-193.61,0.00029025,2]
[423131738,1779874358000,-330.58323694,0.0003,120]
[423131737,1779874358000,-193.61,0.00029932,2]
[423131747,1779874358000,300.0,0.00025999,2]
[423131735,1779874358000,-150.0,0.00029,2]
[423131745,1779874358000,-2000.0,0.00031066,2]
[423131746,1779874358000,-421.0,0.00031066,2]
[423131744,1779874358000,-193.29,0.00031066,2]
[423131743,1779874358000,-254.13290355,0.00031,120]
[423131741,1779874358000,-2351.0,0.00030484,2]
[423131740,1779874358000,-4773.12608269,0.00030135,120]
[423131739,1779874358000,-500.0,0.00030102,2]
[423131742,1779874358000,-193.61,0.00030839,2]
[423131755,1779874359000,-256.72,0.00031649,2]
[423131762,1779874359000,-150.0,0.00032005,7]
[423131760,1779874359000,-78.99325561,0.00031954,2]
[423131761,1779874359000,-150.0,0.00032005,7]
[423131757,1779874359000,-2500.0,0.00031741,120]
[423131758,1779874359000,-193.61,0.00031746,2]
[423131756,1779874359000,-510.3,0.00031741,2]
[423131751,1779874359000,150.0,0.0002433,2]
[423131754,1779874359000,-3876.17227285,0.00031071,2]
[423131753,1779874359000,-683.18712388,0.00031071,2]
[423131752,1779874359000,440.64060327,0.00031071,2]
[423131749,1779874359000,420.0,0.00028137,2]
[423131750,1779874359000,587.0,0.0003045,2]
[423131748,1779874359000,300.0,0.00025999,2]
[423131771,1779874359000,-150.0,0.00032005,7]
[423131759,1779874359000,-591.32674439,0.00031954,2]
[423131766,1779874359000,-150.0,0.00032005,7]
[423131781,1779874359000,-1872.29,0.00032934,120]
[423131763,1779874359000,-150.0,0.00032005,7]
[423131764,1779874359000,-150.0,0.00032005,7]
[423131780,1779874359000,-603.78,0.00032889,2]
[423131779,1779874359000,-976.892,0.00032889,34]
[423131782,1779874359000,-168.42,0.00032934,2]
[423131778,1779874359000,-188.5,0.00032715,120]
[423131776,1779874359000,-2962.35,0.00032638,2]
[423131775,1779874359000,-219.32,0.00032137,120]
[423131772,1779874359000,-494.33,0.0003202,2]
[423131777,1779874359000,-193.61,0.00032653,2]
[423131774,1779874359000,-200.0,0.00032088,2]
[423131783,1779874359000,-200.0,0.0003317,2]
[423131765,1779874359000,-150.0,0.00032005,7]
[423131769,1779874359000,-150.22826443,0.00032005,7]
[423131770,1779874359000,-150.0,0.00032005,7]
[423131768,1779874359000,-150.0,0.00032005,7]
[423131767,1779874359000,-150.0,0.00032005,7]
[423131773,1779874359000,-603.78,0.00032087,2]
[423131813,1779874360000,-150.0,0.00035195,2]
[423131807,1779874360000,-433.0,0.0003449,10]
[423131808,1779874360000,-603.78,0.00034494,2]
[423131809,1779874360000,-150.0,0.00034512,2]
[423131811,1779874360000,-198.7648784,0.00035,2]
[423131812,1779874360000,-150.0,0.00035195,2]
[423131815,1779874360000,-377.86081591,0.00035296,2]
[423131810,1779874360000,-828.89,0.00034578,2]
[423131821,1779874360000,-1828.9471,0.00035369,2]
[423131816,1779874360000,-225.91918409,0.00035296,2]
[423131818,1779874360000,-4007.139099,0.0003532,2]
[423131805,1779874360000,-150.0,0.00034376,7]
[423131819,1779874360000,-2724.15210523,0.0003532,2]
[423131820,1779874360000,-3449.46279112,0.0003532,2]
[423131817,1779874360000,-3141.70262466,0.0003532,2]
[423131823,1779874360000,-535.41792625,0.00035369,2]
[423131822,1779874360000,-27216.86749361,0.00035369,2]
[423131814,1779874360000,-156.00936363,0.00035195,2]
[423131806,1779874360000,-193.61,0.00034467,2]
[423131789,1779874360000,-459.30435941,0.00033568,2]
[423131804,1779874360000,-166.9,0.00033803,2]
[423131824,1779874360000,-2569.65137645,0.00035369,2]
[423131785,1779874360000,-193.61,0.0003356,2]
[423131784,1779874360000,-150.0,0.00033191,7]
[423131787,1779874360000,-6487.27346536,0.00033568,2]
[423131786,1779874360000,-11989.85106503,0.00033568,2]
[423131790,1779874360000,-811.50471421,0.00033568,2]
[423131792,1779874360000,-253.46543089,0.00033568,2]
[423131788,1779874360000,-4876.47975871,0.00033568,2]
[423131803,1779874360000,-190.26906532,0.00033775,3]
[423131791,1779874360000,-271.90586894,0.00033568,2]
[423131794,1779874360000,-367.15438748,0.00033568,2]
[423131797,1779874360000,-6183.57964976,0.00033568,2]
[423131798,1779874360000,-867.04626424,0.00033568,2]
[423131796,1779874360000,-1553.52,0.00033568,2]
[423131801,1779874360000,-3095.33587674,0.00033568,2]
[423131799,1779874360000,-557.49671702,0.00033568,2]
[423131800,1779874360000,-760.11851838,0.00033568,2]
[423131802,1779874360000,-603.78,0.00033691,2]
[423131793,1779874360000,-801.21536008,0.00033568,2]
[423131828,1779874360000,-408.6925,0.0003538,30]
[423131795,1779874360000,-1872.89034925,0.00033568,2]
[423131825,1779874360000,-3046.82868942,0.00035369,2]
[423131848,1779874360000,-10290.49300541,0.00035469,2]
[423131852,1779874360000,-950.32029804,0.00035482,2]
[423131856,1779874360000,-594.79850986,0.00035482,2]
[423131857,1779874360000,-300.0,0.00035482,2]
[423131851,1779874360000,-865.6208675,0.00035482,2]
[423131854,1779874360000,-1148.83589152,0.00035482,2]
[423131849,1779874360000,-208.86858193,0.00035469,2]
[423131867,1779874360000,-312.009877,0.00035482,2]
[423131855,1779874360000,-310.02493426,0.00035482,2]
[423131847,1779874360000,-514.96427326,0.00035469,2]
[423131861,1779874360000,-300.0,0.00035482,2]
[423131862,1779874360000,-484.76763572,0.00035482,2]
[423131860,1779874360000,-452.52893397,0.00035482,2]
[423131858,1779874360000,-464.48677942,0.00035482,2]
[423131863,1779874360000,-310.28230408,0.00035482,2]
[423131866,1779874360000,-493.38669858,0.00035482,2]
[423131864,1779874360000,-300.0,0.00035482,2]
[423131826,1779874360000,-300.13246974,0.00035369,2]
[423131859,1779874360000,-578.28315025,0.00035482,2]
[423131853,1779874360000,-300.09384644,0.00035482,2]
[423131865,1779874360000,-1096.2926835,0.00035482,2]
[423131846,1779874360000,-193.4096987,0.00035469,2]
[423131831,1779874360000,-500.0,0.00035395,2]
[423131827,1779874360000,-47680.35394453,0.00035369,2]
[423131833,1779874360000,-635.68695821,0.00035395,2]
[423131829,1779874360000,-500.0,0.00035395,2]
[423131832,1779874360000,-500.0,0.00035395,2]
[423131850,1779874360000,-300.0,0.00035482,2]
[423131835,1779874360000,-500.0,0.00035395,2]
[423131834,1779874360000,-500.0,0.00035395,2]
[423131836,1779874360000,-500.0,0.00035395,2]
[423131830,1779874360000,-500.0,0.00035395,2]
[423131837,1779874360000,-500.0,0.00035395,2]
[423131838,1779874360000,-500.0,0.00035395,2]
[423131842,1779874360000,-500.0,0.00035395,2]
[423131844,1779874360000,-6792.15368237,0.00035465,2]
[423131840,1779874360000,-500.0,0.00035395,2]
[423131839,1779874360000,-500.0,0.00035395,2]
[423131841,1779874360000,-500.0,0.00035395,2]
[423131843,1779874360000,-624.0,0.00035395,2]
[423131845,1779874360000,-2500.0,0.00035467,2]
[423131890,1779874361000,-300.0,0.00035482,2]
[423131891,1779874361000,-464.48677942,0.00035482,2]
[423131886,1779874361000,-1148.83589152,0.00035482,2]
[423131888,1779874361000,-300.00000001,0.00035482,2]
[423131893,1779874361000,-452.52893397,0.00035482,2]
[423131896,1779874361000,-581.34749159,0.00035482,2]
[423131895,1779874361000,-300.0,0.00035482,2]
[423131904,1779874361000,-300.0,0.00035482,2]
[423131898,1779874361000,-310.28230408,0.00035482,2]
[423131902,1779874361000,-307.08549401,0.00035482,2]
[423131899,1779874361000,-300.0,0.00035482,2]
[423131897,1779874361000,-484.76763572,0.00035482,2]
[423131900,1779874361000,-1096.2926835,0.00035482,2]
[423131901,1779874361000,-300.0,0.00035482,2]
[423131903,1779874361000,-493.38669858,0.00035482,2]
[423131889,1779874361000,-594.79850986,0.00035482,2]
[423131894,1779874361000,-300.0,0.00035482,2]
[423131883,1779874361000,-865.6208675,0.00035482,2]
[423131878,1779874361000,-300.0,0.00035482,2]
[423131885,1779874361000,-300.09384644,0.00035482,2]
[423131905,1779874361000,-605.31118564,0.00035482,2]
[423131869,1779874361000,-300.0,0.00035482,2]
[423131868,1779874361000,-605.31118564,0.00035482,2]
[423131870,1779874361000,-300.0,0.00035482,2]
[423131872,1779874361000,-1068.40163352,0.00035482,2]
[423131873,1779874361000,-894.65434383,0.00035482,2]
[423131874,1779874361000,-727.07827244,0.00035482,2]
[423131875,1779874361000,-302.21937029,0.00035482,2]
[423131876,1779874361000,-300.0,0.00035482,2]
[423131877,1779874361000,-300.99795142,0.00035482,2]
[423131879,1779874361000,-300.0,0.00035482,2]
[423131871,1779874361000,-528.48327171,0.00035482,2]
[423131880,1779874361000,-1263.96825586,0.00035482,2]
[423131882,1779874361000,-527.62572404,0.00035482,2]
[423131884,1779874361000,-950.32029804,0.00035482,2]
[423131881,1779874361000,-344.45437934,0.00035482,2]
[423131892,1779874361000,-578.28315025,0.00035482,2]
[423131887,1779874361000,-310.02493426,0.00035482,2]
[423131906,1779874361000,-150.0,0.00035562,7]
[423131907,1779874361000,-500.0,0.00035566,7]
[423131943,1779874361000,-528.48327171,0.00035482,2]
[423131933,1779874361000,-311.98467859,0.00035567,2]
[423131930,1779874361000,-3454.1114814,0.00035567,2]
[423131931,1779874361000,-652.08200092,0.00035567,2]
[423131932,1779874361000,-2962.65685451,0.00035567,2]
[423131934,1779874361000,-524.9326699,0.00035567,2]
[423131935,1779874361000,-331.34329428,0.00035482,2]
[423131936,1779874361000,-73.40670572,0.00035567,2]
[423131937,1779874361000,-603.32,0.00034543,10]
[423131938,1779874361000,-300.0,0.00035482,2]
[423131939,1779874361000,-429.6154894,0.00035567,2]
[423131940,1779874361000,-407.17135003,0.00035567,2]
[423131945,1779874361000,-406.65448996,0.00035482,2]
[423131944,1779874361000,-661.74714356,0.00035482,2]
[423131942,1779874361000,-322.31309113,0.00035567,2]
[423131941,1779874361000,-934.13766006,0.00035567,2]
[423131947,1779874361000,-822.41952396,0.00035567,2]
[423131908,1779874361000,-375.56502283,0.00035566,7]
[423131927,1779874361000,-151.0,0.00035567,2]
[423131929,1779874361000,-93264.4823098,0.00035567,2]
[423131946,1779874361000,-1897.34551004,0.00035567,2]
[423131921,1779874361000,-151.0,0.00035567,2]
[423131910,1779874361000,-500.0,0.00035566,7]
[423131912,1779874361000,-150.97549006,0.00035566,7]
[423131928,1779874361000,-231.20957,0.00035567,2]
[423131914,1779874361000,-151.0,0.00035567,2]
[423131911,1779874361000,-523.5983784,0.00035566,7]
[423131913,1779874361000,-151.0,0.00035567,2]
[423131909,1779874361000,-265.77076131,0.00035566,7]
[423131915,1779874361000,-151.0,0.00035567,2]
[423131923,1779874361000,-151.0,0.00035567,2]
[423131916,1779874361000,-151.0,0.00035567,2]
[423131919,1779874361000,-151.0,0.00035567,2]
[423131924,1779874361000,-151.0,0.00035567,2]
[423131925,1779874361000,-151.0,0.00035567,2]
[423131920,1779874361000,-151.0,0.00035567,2]
[423131922,1779874361000,-151.0,0.00035567,2]
[423131926,1779874361000,-151.0,0.00035567,2]
[423131918,1779874361000,-151.0,0.00035567,2]
[423131917,1779874361000,-151.0,0.00035567,2]
[423131949,1779874362000,-370.45,0.00035567,2]
[423131950,1779874362000,-4766.68272188,0.00035567,2]
[423131953,1779874362000,-1668.73,0.00035567,2]
[423131951,1779874362000,-14950.81141236,0.00035567,2]
[423131952,1779874362000,-707.16647587,0.00035567,2]
[423131948,1779874362000,-54.1212534,0.00035567,2]
[423131954,1779874367000,209.5,0.00017425,2]
[423131955,1779874376000,290.5,0.00024174,2]
[423131956,1779874391000,-3271.24,0.00024174,2]
[423131957,1779874540000,-3561.74,0.00025786,2]
[423131958,1779874540000,-527.99994,0.00025082,2]
[423131962,1779874541000,-250.0,0.0002759,2]
[423131961,1779874541000,-336.67304992,0.00025434,2]
[423131960,1779874541000,-208.97895572,0.00025786,2]
[423131959,1779874541000,-215.46156935,0.00025786,2]
[423131965,1779874543000,-1680.0,0.00028036,2]
[423131963,1779874543000,-160.0,0.00029,2]
[423131966,1779874543000,-400.0,0.00029,2]
[423131964,1779874543000,-1200.0,0.00025785,2]
[423131975,1779875171000,-150.0,0.0002534,2]
[423131971,1779875171000,500.0,0.00025082,2]
[423131972,1779875171000,500.0,0.00025082,2]
[423131973,1779875171000,-46.44069921,0.00025082,2]
[423131974,1779875171000,-453.55930079,0.00025082,2]
[423131976,1779875171000,-1747.44069921,0.00030484,2]
[423131978,1779875171000,-603.55930079,0.00030484,2]
[423131979,1779875171000,-209.92478006,0.000319,2]
[423131981,1779875171000,-250.0,0.00032761,2]
[423131980,1779875171000,-249.14572215,0.00032,120]
[423131982,1779875171000,-249.14572215,0.00033,120]
[423131983,1779875171000,-379.0,0.00033145,3]
[423131985,1779875171000,-11.0787527,0.00034541,2]
[423131977,1779875171000,-150.0,0.00029,2]
[423131984,1779875171000,-249.14572215,0.000339,120]
[423131987,1779875172000,-200.0,0.00034606,15]
[423131989,1779875172000,-999.1387527,0.00034741,2]
[423131986,1779875172000,-988.9212473,0.00034541,2]
[423131988,1779875172000,-162.94,0.00034637,120]
[423131991,1779875172000,-356.98459284,0.0002508,2]
[423131994,1779875172000,-1388.1775487,0.00034741,2]
[423131993,1779875172000,-747.43716645,0.00032,120]
[423131995,1779875172000,300.06,0.00028,120]
[423131990,1779875172000,1143.01540716,0.0002508,2]
[423131992,1779875172000,-215.38528485,0.00025082,2]
[423131996,1779875172000,-250.0,0.00027588,2]
[423132000,1779875173000,-213.89808373,0.00031979,2]
[423131997,1779875173000,964.0,0.00028082,120]
[423132001,1779875173000,-2137.10191627,0.0003305,2]
[423131998,1779875173000,-747.43716645,0.00033,120]
[423131999,1779875173000,-1603.56283355,0.0003305,2]
[423132003,1779875174000,250.0,0.00014,2]
[423132002,1779875174000,-2351.0,0.00031809,2]
[423132006,1779875280000,-2101.0,0.00033289,2]
[423132005,1779875280000,-250.0,0.00032381,2]
[423132007,1779875281000,-150.0,0.00025082,2]
[423132008,1779875281000,-150.0,0.00025082,2]
[423132012,1779875282000,-150.0,0.00025082,2]
[423132010,1779875282000,-77.0,0.00025082,2]
[423132011,1779875282000,-73.0,0.00025082,2]
[423132009,1779875282000,-150.0,0.00025082,2]
[423132015,1779875283000,-4.0,0.00032,120]
[423132013,1779875283000,-150.0,0.00025082,2]
[423132016,1779875283000,-150.0,0.000295,2]
[423132018,1779875283000,-79.34246525,0.000295,2]
[423132014,1779875283000,-146.0,0.00025082,2]
[423132017,1779875283000,-70.65753475,0.000295,2]
[423132022,1779875284000,-150.0,0.000295,2]
[423132020,1779875284000,-141.3150695,0.000295,2]
[423132021,1779875284000,-8.6849305,0.000295,2]
[423132019,1779875284000,150.0,0.0001358,2]
[423132024,1779875285000,-150.0,0.00030384,108]
[423132023,1779875285000,-61.97260425,0.000295,2]
[423132029,1779875286000,-150.0,0.00029591,30]
[423132028,1779875286000,-150.0,0.00030384,108]
[423132027,1779875286000,-150.0,0.00030384,108]
[423132026,1779875286000,-150.0,0.00030384,108]
[423132025,1779875286000,-150.0,0.00027521,2]
[423132031,1779875287000,1143.01540716,0.0001358,10]
[423132030,1779875287000,1143.01540716,0.0001358,10]
[423132033,1779875287000,-150.0,0.0001358,10]
[423132032,1779875287000,1143.01540716,0.0001358,10]
[423132034,1779875287000,-150.0,0.0001358,10]
[423132035,1779875288000,-150.0,0.0001358,10]
[423132036,1779875299000,-150.0,0.0001358,10]
[423132037,1779875299000,-150.0,0.0001358,10]
[423132038,1779875383000,-150.0,0.00013579,2]
[423132040,1779875384000,-150.0,0.00013579,2]
[423132039,1779875384000,272.90234396,0.00010548,2]
[423132253,1779875491000,-150.0,0.0001358,10]
[423132252,1779875491000,-150.0,0.0001358,10]
[423132250,1779875491000,-150.0,0.0001358,10]
[423132249,1779875491000,-150.0,0.0001358,10]
[423132251,1779875491000,-150.0,0.0001358,10]
[423132256,1779875492000,-150.0,0.0001358,10]
[423132255,1779875492000,-150.0,0.0001358,10]
[423132254,1779875492000,-150.0,0.0001358,10]
[423132258,1779875493000,300.0,0.00013579,2]
[423132257,1779875493000,-150.0,0.0001358,10]